bitfinex-derivatives/quotes_BTCF0:USTF0_20241231
["timestamp","ask_amount","ask_price","bid_price","bid_amount"]
[1735607514680,0.10697124,92363.0,92362.0,0.001]
[1735607514883,0.10697124,92363.0,92362.0,0.004]
[1735607515188,0.05274324,92363.0,92362.0,0.004]
[1735607515383,0.3608,92377.0,92376.0,0.054221]
[1735607515586,0.3608,92377.0,92370.0,0.054224]
[1735607515891,0.3608,92377.0,92362.0,0.126]
[1735607515892,0.3608,92377.0,92376.0,1.5]
[1735607517384,0.3628,92377.0,92376.0,1.5]
[1735607517990,0.3658,92377.0,92376.0,1.5]
[1735607518490,0.054225,92369.0,92368.0,0.19408681]
[1735607519888,0.06487884,92369.0,92368.0,0.19408681]
[1735607520292,0.054227,92366.0,92361.0,0.054229]
[1735607520986,0.054228,92365.0,92361.0,0.054229]
[1735607521597,0.054228,92365.0,92361.0,0.057229]
[1735607522603,0.054228,92364.0,92361.0,0.003]
[1735607522793,0.415029,92362.0,92361.0,0.004]
[1735607523293,1.0216,92362.0,92343.0,0.3249802]
[1735607523489,0.3608,92346.0,92340.0,0.3249802]
[1735607523797,0.054241,92341.0,92340.0,0.3249802]
[1735607524192,0.354241,92341.0,92332.0,0.36133954]
[1735607524500,0.415046,92333.0,92332.0,0.34489338]
[1735607525001,0.412046,92333.0,92332.0,0.34489338]
[1735607525186,0.3608,92333.0,92310.0,0.16693295]
[1735607525391,0.3608,92333.0,92310.0,0.054259]
[1735607525392,0.3608,92321.0,92310.0,0.054259]
[1735607525688,0.11267395,92320.0,92308.0,0.3608]
[1735607525898,0.05426,92309.0,92308.0,0.3608]
[1735607526995,0.054255,92319.0,92308.0,0.3668]
[1735607527191,0.01163162,92320.0,92310.0,0.05426]
[1735607527192,0.16125347,92314.0,92310.0,0.05426]
[1735607527383,0.16125347,92314.0,92311.0,0.0596]
[1735607527786,0.16125347,92314.0,92312.0,0.054258]
[1735607528093,0.16125347,92314.0,92312.0,0.113358]
[1735607528293,0.01063162,92320.0,92312.0,0.113358]
[1735607528294,0.09657179,92315.0,92312.0,0.113358]
[1735607528595,0.001,92314.0,92312.0,0.113358]
[1735607529899,0.001,92314.0,92312.0,0.115358]
[1735607530198,0.001,92314.0,92313.0,0.054258]
[1735607531000,0.09657179,92323.0,92322.0,0.054253]
[1735607531195,0.09657179,92323.0,92322.0,0.415053]
[1735607531996,0.09657179,92327.0,92324.0,0.054251]
[1735607532195,0.09657179,92327.0,92325.0,0.05425]
[1735607532699,0.09657179,92327.0,92326.0,1.5]
[1735607533301,0.12876238,92332.0,92331.0,0.054247]
[1735607533602,0.48688,92346.0,92333.0,0.054246]
[1735607533603,0.12876238,92335.0,92333.0,0.054246]
[1735607534103,0.12876238,92335.0,92334.0,0.0587]
[1735607534904,0.84768,92346.0,92334.0,0.0587]
[1735607534905,0.12876238,92343.0,92335.0,0.054245]
[1735607535290,0.12876238,92343.0,92336.0,0.054244]
[1735607535604,0.12876238,92343.0,92334.0,0.0587]
[1735607536303,0.05424,92344.0,92335.0,0.003]
[1735607536703,0.054241,92342.0,92335.0,0.003]
[1735607536998,0.054241,92342.0,92334.0,0.0587]
[1735607537200,0.054241,92342.0,92334.0,0.0607]
[1735607537504,0.3608,92337.0,92334.0,0.0607]
[1735607537694,0.3608,92337.0,92334.0,0.002]
[1735607537895,0.054244,92336.0,92334.0,0.002]
[1735607538798,0.054244,92336.0,92335.0,0.001]
[1735607539600,0.001,92336.0,92322.0,0.0604]
[1735607539996,0.054248,92331.0,92322.0,0.0604]
[1735607540902,0.054248,92331.0,92324.0,0.054251]
[1735607541098,0.055248,92331.0,92324.0,0.054251]
[1735607541510,0.001,92331.0,92327.0,0.05425]
[1735607541701,0.01202681,92331.0,92322.0,0.0604]
[1735607542006,0.001,92331.0,92329.0,0.054248]
[1735607542201,0.12867234,92334.0,92332.0,0.054246]
[1735607542703,0.13976585,92334.0,92333.0,1.5]
[1735607542903,0.12867234,92334.0,92333.0,1.5]
[1735607543309,0.12867234,92334.0,92333.0,1.5574]
[1735607543512,0.48947234,92337.0,92333.0,1.5574]
[1735607543805,0.48947234,92337.0,92333.0,1.611646]
[1735607544204,0.48947234,92337.0,92333.0,1.5574]
[1735607544405,0.48947234,92337.0,92334.0,0.054245]
[1735607544602,0.12867234,92337.0,92336.0,0.054244]
[1735607544809,0.12867234,92340.0,92339.0,0.054243]
[1735607546105,0.12867234,92341.0,92339.0,0.054243]
[1735607546303,0.12867234,92341.0,92340.0,0.0609]
[1735607547307,0.12967234,92341.0,92340.0,0.0609]
[1735607547504,0.001,92341.0,92340.0,0.0609]
[1735607547707,0.84768,92346.0,92340.0,0.0609]
[1735607547910,0.84668,92346.0,92340.0,0.0619]
[1735607548307,0.84668,92346.0,92341.0,0.054241]
[1735607548507,0.85747748,92346.0,92341.0,0.054241]
[1735607549313,0.16125347,92345.0,92340.0,0.0629]
[1735607549509,0.05424,92343.0,92340.0,0.001]
[1735607550112,0.054241,92342.0,92340.0,0.001]
[1735607550616,0.054241,92341.0,92340.0,0.001]
[1735607551914,0.10700116,92341.0,92340.0,0.001]
[1735607553315,0.05276016,92341.0,92340.0,0.001]
[1735607553510,0.10700116,92341.0,92340.0,0.001]
[1735607553910,0.05276016,92341.0,92327.0,0.054249]
[1735607554111,0.3608,92337.0,92327.0,0.054249]
[1735607554412,0.3608,92337.0,92323.0,1.50056]
[1735607554714,0.3608,92337.0,92329.0,0.054248]
[1735607554914,0.3608,92337.0,92323.0,1.5]
[1735607554915,0.054249,92328.0,92323.0,1.50056]
[1735607555115,0.054249,92328.0,92327.0,0.001]
[1735607556724,0.054249,92329.0,92327.0,0.001]
[1735607556920,0.19383362,92332.0,92326.0,0.05425]
[1735607557129,0.24808062,92332.0,92326.0,0.05425]
[1735607557421,0.05276016,92328.0,92327.0,0.054249]
[1735607557721,0.05276016,92328.0,92327.0,0.055249]
[1735607558216,0.05276016,92328.0,92327.0,0.054249]
[1735607558615,0.19394151,92329.0,92327.0,0.054249]
[1735607559805,0.19394151,92329.0,92326.0,0.001]
[1735607560011,0.01070253,92332.0,92326.0,0.001]
[1735607560012,0.054249,92328.0,92326.0,0.001]
[1735607560213,0.054249,92328.0,92327.0,0.001]
[1735607561123,0.10700916,92328.0,92327.0,0.001]
[1735607562609,0.05425,92326.0,92308.0,0.05426]
[1735607562810,0.3608,92317.0,92308.0,0.05426]
[1735607563015,0.054257,92315.0,92308.0,0.05426]
[1735607563219,0.0611,92316.0,92308.0,0.05426]
[1735607563220,0.054258,92313.0,92308.0,0.05426]
[1735607564421,0.055258,92313.0,92308.0,0.05526]
[1735607565421,0.1615814,92309.0,92308.0,0.05526]
[1735607565715,0.1615814,92309.0,92308.0,0.003]
[1735607566716,0.1615814,92309.0,92308.0,0.002]
[1735607567921,0.1625814,92309.0,92308.0,0.002]
[1735607568126,0.1625814,92309.0,92307.0,0.054261]
[1735607568316,0.1625814,92309.0,92308.0,0.002]
[1735607569522,0.1625814,92309.0,92308.0,0.001]
[1735607569723,0.054259,92311.0,92308.0,0.001]
[1735607571026,0.16136249,92310.0,92308.0,0.001]
[1735607572219,0.16136249,92310.0,92307.0,0.054261]
[1735607572617,0.16136249,92310.0,92308.0,1.5]
[1735607572922,0.16136249,92310.0,92308.0,1.55426]
[1735607573423,0.16136249,92312.0,92311.0,0.054259]
[1735607573923,0.01104516,92317.0,92316.0,0.054256]
[1735607574628,0.19396213,92320.0,92319.0,0.054254]
[1735607574931,0.19396213,92320.0,92319.0,0.415054]
[1735607575118,0.12908066,92323.0,92322.0,0.054253]
[1735607575424,0.19396213,92336.0,92335.0,0.054245]
[1735607576622,0.19396213,92336.0,92332.0,0.3608]
[1735607576623,0.01106583,92341.0,92340.0,0.054242]
[1735607576821,0.3608,92348.0,92345.0,0.054239]
[1735607577033,0.19396213,92350.0,92346.0,0.054238]
[1735607577227,0.2050421,92350.0,92346.0,0.054238]
[1735607578131,0.01107997,92350.0,92346.0,0.054238]
[1735607578321,0.054234,92354.0,92346.0,0.054238]
[1735607579431,0.05275543,92352.0,92346.0,0.054238]
[1735607580423,0.05275543,92352.0,92340.0,0.11267395]
[1735607580924,0.05275543,92352.0,92340.0,0.054242]
[1735607581527,0.05375543,92352.0,92340.0,0.054242]
[1735607582123,0.054236,92351.0,92340.0,0.055242]
[1735607584731,0.054236,92351.0,92342.0,0.054241]
[1735607584930,0.055236,92351.0,92342.0,0.054241]
[1735607585434,0.001,92351.0,92344.0,0.054239]
[1735607585621,0.001,92351.0,92350.0,0.054236]
[1735607586026,0.06716437,92353.0,92350.0,0.054236]
[1735607588236,0.06816437,92353.0,92350.0,0.054236]
[1735607590939,0.06816437,92353.0,92351.0,0.054235]
[1735607591931,0.06716437,92353.0,92351.0,0.054235]
[1735607592133,0.06816437,92353.0,92351.0,0.054235]
[1735607592335,0.06916437,92353.0,92351.0,0.054235]
[1735607592638,0.01266437,92353.0,92351.0,0.054235]
[1735607594854,0.01266437,92353.0,92341.0,0.3608]
[1735607595154,0.054239,92345.0,92341.0,0.3608]
[1735607595332,0.05424,92343.0,92341.0,0.3608]
[1735607595536,0.0581,92344.0,92341.0,0.3608]
[1735607595940,0.054243,92339.0,92330.0,0.00056]
[1735607596146,0.3608,92337.0,92329.0,0.11267395]
[1735607596544,0.3608,92337.0,92330.0,1.5]
[1735607597138,0.3608,92337.0,92330.0,1.554248]
[1735607597341,0.3608,92337.0,92332.0,0.054247]
[1735607597543,0.3608,92337.0,92334.0,0.054245]
[1735607597747,0.001,92337.0,92336.0,0.054244]
[1735607598548,0.001,92337.0,92336.0,1.554244]
[1735607598742,0.3608,92348.0,92347.0,0.054238]
[1735607599841,0.48708,92358.0,92350.0,0.054236]
[1735607600044,0.486,92358.0,92350.0,0.054236]
[1735607600241,0.3608,92356.0,92350.0,0.054236]
[1735607600751,0.3608,92356.0,92352.0,0.054235]
[1735607601345,0.3618,92356.0,92352.0,0.054235]
[1735607602047,0.3628,92356.0,92352.0,0.054235]
[1735607603250,0.3628,92356.0,92345.0,0.054239]
[1735607603552,0.3608,92346.0,92345.0,0.054239]
[1735607603943,0.3608,92346.0,92340.0,0.0592]
[1735607604144,0.3608,92346.0,92336.0,1.5006]
[1735607604347,0.3608,92337.0,92332.0,0.25940358]
[1735607604650,0.054245,92336.0,92332.0,0.25940358]
[1735607604949,0.054246,92334.0,92325.0,1.5]
[1735607605546,0.054246,92334.0,92325.0,1.55425]
[1735607605746,0.3608,92337.0,92330.0,0.054248]
[1735607606053,0.3608,92337.0,92336.0,0.002]
[1735607606848,0.3608,92337.0,92330.0,0.054248]
[1735607607355,0.3618,92337.0,92330.0,0.054248]
[1735607607748,0.3628,92337.0,92330.0,0.054248]
[1735607608054,0.05276362,92336.0,92325.0,1.50064]
[1735607608257,0.1616146,92331.0,92330.0,0.054248]
[1735607609348,0.1616146,92331.0,92330.0,0.055248]
[1735607609664,0.1616146,92336.0,92335.0,0.054245]
[1735607610757,0.1616146,92340.0,92336.0,0.054244]
[1735607610955,0.1616146,92340.0,92338.0,0.054243]
[1735607612560,0.1616146,92345.0,92340.0,0.054242]
[1735607612749,0.1616146,92345.0,92342.0,0.054241]
[1735607614348,0.002,92345.0,92342.0,0.054241]
[1735607615564,0.1636146,92345.0,92342.0,0.054241]
[1735607615749,0.1636146,92345.0,92336.0,0.0581]
[1735607615945,0.05424,92343.0,92337.0,0.054243]
[1735607616347,0.3608,92338.0,92337.0,0.054243]
[1735607616966,0.1616146,92340.0,92336.0,0.0581]
[1735607617170,0.1616146,92340.0,92339.0,0.054243]
[1735607619262,0.1616146,92340.0,92337.0,0.001]
[1735607619263,0.1616146,92344.0,92343.0,0.05424]
[1735607619656,0.1616146,92344.0,92343.0,1.55424]
[1735607620561,0.5224146,92347.0,92343.0,1.5]
[1735607620764,0.5224146,92347.0,92345.0,0.054239]
[1735607621263,0.1616146,92347.0,92345.0,0.054239]
[1735607623058,0.17247258,92350.0,92343.0,1.50064]
[1735607623255,0.1616146,92350.0,92349.0,0.054237]
[1735607624560,0.1616146,92354.0,92349.0,0.054237]
[1735607624756,0.001,92350.0,92349.0,0.054237]
[1735607626066,0.002,92350.0,92349.0,0.054237]
[1735607626470,0.001,92350.0,92349.0,0.054237]
[1735607627155,0.002,92350.0,92349.0,0.054237]
[1735607632567,0.3628,92350.0,92349.0,0.054237]
[1735607635666,0.3628,92350.0,92349.0,1.554237]
[1735607635870,0.3618,92350.0,92349.0,1.554237]
[1735607636060,0.3628,92350.0,92349.0,0.054237]
[1735607636266,0.20376703,92350.0,92349.0,0.054237]
[1735607637073,0.002,92350.0,92349.0,0.054237]
[1735607637571,0.1636146,92350.0,92349.0,0.054237]
[1735607638663,0.002,92350.0,92349.0,0.054237]
[1735607640575,0.002,92350.0,92349.0,1.554237]
[1735607641167,0.0547504,92350.0,92349.0,1.554237]
[1735607641876,0.3608,92379.0,92363.0,0.054228]
[1735607642076,0.84764,92372.0,92363.0,0.054228]
[1735607642477,1.07230116,92372.0,92363.0,0.054228]
[1735607642675,0.22566116,92372.0,92371.0,0.054224]
[1735607642877,0.22566116,92372.0,92371.0,0.415024]
[1735607642878,0.22466116,92372.0,92371.0,0.415024]
[1735607643081,0.22466116,92372.0,92371.0,1.915024]
[1735607643667,0.22466116,92372.0,92371.0,1.92584046]
[1735607643871,0.19422206,92374.0,92373.0,0.054223]
[1735607644470,0.19422206,92374.0,92373.0,0.114023]
[1735607645072,0.16164693,92375.0,92373.0,0.114023]
[1735607645466,0.005,92374.0,92373.0,0.114023]
[1735607646180,0.014,92374.0,92373.0,0.114023]
[1735607646679,0.005,92374.0,92373.0,0.114023]
[1735607646874,0.014,92374.0,92373.0,0.114023]
[1735607647467,0.19422206,92384.0,92383.0,0.054217]
[1735607647974,0.19422206,92390.0,92389.0,0.054213]
[1735607648480,0.001,92399.0,92389.0,0.415013]
[1735607648678,0.32094452,92410.0,92409.0,0.054201]
[1735607648875,0.3608,92439.0,92417.0,0.054197]
[1735607649072,0.3608,92439.0,92417.0,1.914997]
[1735607649580,0.3608,92439.0,92431.0,0.054188]
[1735607649581,0.37190473,92439.0,92431.0,0.054188]
[1735607649882,0.37190473,92439.0,92429.0,0.11267395]
[1735607650178,0.37190473,92439.0,92437.0,0.054185]
[1735607650380,0.2907108,92447.0,92445.0,0.05418]
[1735607650769,0.2907108,92447.0,92438.0,0.3608]
[1735607650770,0.4864,92451.0,92438.0,0.3608]
[1735607650971,0.48572,92451.0,92450.0,0.054177]
[1735607651167,0.414969,92465.0,92455.0,0.054174]
[1735607651977,0.42563346,92465.0,92455.0,0.054174]
[1735607652981,0.43463346,92465.0,92455.0,0.055174]
[1735607653368,0.43463346,92465.0,92455.0,0.001]
[1735607653369,0.3608,92456.0,92455.0,0.001]
[1735607653574,0.054176,92454.0,92437.0,0.054185]
[1735607653781,0.3608,92444.0,92430.0,0.0611]
[1735607653977,0.3608,92444.0,92426.0,0.25940358]
[1735607654176,0.3608,92435.0,92431.0,0.054189]
[1735607655274,0.3608,92435.0,92423.0,0.3608]
[1735607655275,0.3608,92444.0,92423.0,0.3608]
[1735607655579,0.3608,92444.0,92436.0,0.054185]
[1735607655772,0.3608,92444.0,92430.0,0.11267395]
[1735607655977,0.3608,92444.0,92437.0,0.054184]
[1735607656180,0.003,92435.0,92431.0,0.054189]
[1735607656385,0.003,92435.0,92434.0,0.054187]
[1735607656790,0.37172906,92444.0,92434.0,0.054187]
[1735607657686,0.37172906,92444.0,92423.0,0.3628]
[1735607657687,0.3608,92435.0,92427.0,0.054191]
[1735607657982,0.3608,92435.0,92414.0,0.3608]
[1735607658187,0.054196,92419.0,92414.0,0.3608]
[1735607658388,0.054196,92419.0,92403.0,0.054205]
[1735607658389,0.054198,92416.0,92403.0,0.054205]
[1735607658583,0.3608,92421.0,92400.0,1.5006]
[1735607658584,0.054201,92411.0,92400.0,1.5006]
[1735607658885,0.054201,92411.0,92335.0,0.01624]
[1735607658886,0.05421,92395.0,92384.0,0.19503786]
[1735607659073,0.3608,92401.0,92384.0,0.19503786]
[1735607659074,0.11267395,92400.0,92384.0,0.19503786]
[1735607659278,0.3608,92386.0,92384.0,0.19503786]
[1735607660087,0.054207,92400.0,92388.0,0.054213]
[1735607660288,0.37167473,92401.0,92384.0,0.005]
[1735607660484,0.42588073,92401.0,92400.0,0.003]
[1735607661288,0.054208,92398.0,92388.0,0.002]
[1735607661974,0.37267473,92401.0,92385.0,0.054215]
[1735607662182,0.054209,92397.0,92385.0,0.054215]
[1735607662488,0.26415274,92401.0,92385.0,0.054215]
[1735607662786,0.26415274,92401.0,92389.0,1.5]
[1735607663288,0.11267395,92400.0,92389.0,1.5]
[1735607663589,0.3608,92393.0,92389.0,1.5]
[1735607664992,0.3608,92393.0,92389.0,1.555213]
[1735607665284,0.3608,92410.0,92400.0,0.054207]
[1735607665491,0.47347395,92410.0,92392.0,0.3608]
[1735607665691,0.415006,92401.0,92391.0,0.054211]
[1735607665889,0.415006,92401.0,92400.0,1.5]
[1735607666790,0.054213,92390.0,92389.0,0.001]
[1735607667177,0.054216,92385.0,92384.0,1.75940358]
[1735607667680,0.054216,92385.0,92384.0,0.25940358]
[1735607667978,0.054216,92385.0,92384.0,0.23435759]
[1735607668178,0.054222,92374.0,92373.0,0.19338701]
[1735607668387,0.415022,92374.0,92373.0,0.19338701]
[1735607669087,0.37157393,92374.0,92373.0,0.19338701]
[1735607669292,0.3608,92376.0,92373.0,0.19338701]
[1735607669481,0.3608,92376.0,92373.0,0.003]
[1735607669684,0.01074752,92376.0,92373.0,0.003]
[1735607669882,0.054219,92380.0,92369.0,0.054225]
[1735607670088,0.01084321,92382.0,92375.0,0.054221]
[1735607670291,0.001,92385.0,92380.0,0.054218]
[1735607670584,0.3608,92396.0,92381.0,0.415017]
[1735607670585,0.05421,92394.0,92381.0,0.415017]
[1735607670889,0.3608,92396.0,92382.0,0.054217]
[1735607671091,0.37167583,92396.0,92382.0,0.054217]
[1735607671789,0.11267395,92392.0,92382.0,0.054217]
[1735607671985,0.054212,92391.0,92382.0,0.054217]
[1735607672191,0.11267395,92392.0,92358.0,0.3248898]
[1735607672192,0.3608,92383.0,92358.0,0.3248898]
[1735607672489,0.054233,92356.0,92325.0,0.0649]
[1735607672693,0.7216,92359.0,92325.0,0.0649]
[1735607672694,0.3608,92328.0,92325.0,0.0649]
[1735607674676,0.3608,92328.0,92326.0,0.05425]
[1735607675081,0.3608,92339.0,92326.0,0.05425]
[1735607675484,0.3608,92329.0,92326.0,0.05425]
[1735607676092,0.001,92328.0,92326.0,0.06025]
[1735607676486,0.3608,92329.0,92326.0,0.06025]
[1735607676994,0.3608,92329.0,92326.0,0.05425]
[1735607677185,0.3618,92329.0,92326.0,0.06025]
[1735607677392,0.3618,92329.0,92328.0,0.054249]
[1735607678299,0.3618,92329.0,92328.0,1.554249]
[1735607678480,0.001,92329.0,92328.0,1.554249]
[1735607678793,0.415043,92339.0,92329.0,0.054248]
[1735607679293,0.415043,92339.0,92328.0,1.50056]
[1735607679592,0.001,92329.0,92328.0,1.566249]
[1735607680092,0.415043,92339.0,92330.0,0.054248]
[1735607680584,0.415043,92339.0,92329.0,0.004]
[1735607680785,0.3608,92339.0,92329.0,0.004]
[1735607680984,0.3608,92339.0,92335.0,0.054244]
[1735607681480,0.3608,92339.0,92329.0,0.060248]
[1735607681681,0.3618,92339.0,92331.0,0.054247]
[1735607682095,0.3618,92339.0,92329.0,0.002]
[1735607682285,0.3608,92339.0,92335.0,0.058245]
[1735607682486,0.3608,92339.0,92335.0,0.060245]
[1735607682992,0.3608,92339.0,92335.0,0.056245]
[1735607683602,0.3608,92339.0,92337.0,0.054243]
[1735607683894,0.3608,92349.0,92343.0,0.05424]
[1735607684086,0.3608,92349.0,92344.0,1.5]
[1735607685892,0.3628,92349.0,92344.0,1.5]
[1735607686392,0.3638,92349.0,92344.0,1.5]
[1735607686587,0.3638,92349.0,92331.0,0.3608]
[1735607686588,0.054239,92346.0,92336.0,0.054244]
[1735607686783,0.3608,92340.0,92336.0,0.054244]
[1735607688388,0.3608,92340.0,92336.0,0.056244]
[1735607688593,0.3608,92340.0,92336.0,0.061244]
[1735607689396,0.3608,92340.0,92336.0,0.007]
[1735607689697,0.3608,92340.0,92337.0,0.054243]
[1735607690198,0.3608,92340.0,92338.0,0.054243]
[1735607691599,0.3608,92340.0,92338.0,0.055243]
[1735607691989,0.3608,92340.0,92338.0,0.059243]
[1735607692691,0.3608,92340.0,92339.0,1.5]
[1735607693306,0.37172054,92340.0,92339.0,1.5]
[1735607694491,0.37172054,92340.0,92339.0,1.501]
[1735607694893,0.37172054,92340.0,92339.0,1.504]
[1735607695391,0.3608,92340.0,92339.0,1.504]
[1735607696798,0.00068,92355.0,92339.0,1.8648]
[1735607696996,0.3608,92379.0,92354.0,0.054234]
[1735607697198,0.3608,92379.0,92372.0,0.054223]
[1735607697499,0.3608,92379.0,92360.0,0.11286478]
[1735607697799,0.3608,92379.0,92361.0,1.5]
[1735607698396,0.3658,92379.0,92361.0,1.5]
[1735607698599,0.3748,92379.0,92375.0,0.054221]
[1735607699005,0.3658,92379.0,92375.0,0.054221]
[1735607699302,0.3658,92379.0,92361.0,1.5]
[1735607699303,0.427019,92379.0,92369.0,0.054225]
[1735607699603,0.3608,92371.0,92369.0,0.054225]
[1735607701705,0.3608,92371.0,92369.0,0.055225]
[1735607702008,0.3608,92371.0,92369.0,0.057225]
[1735607702901,0.3608,92371.0,92369.0,0.055225]
[1735607703096,0.6608,92371.0,92351.0,0.38794445]
[1735607703295,0.054235,92353.0,92351.0,0.38794445]
[1735607704705,0.054235,92353.0,92351.0,0.38994445]
[1735607705098,0.1244,92355.0,92338.0,1.5]
[1735607705312,0.3608,92339.0,92338.0,1.5]
[1735607705895,0.054243,92338.0,92337.0,0.32437972]
[1735607706304,0.054248,92329.0,92328.0,0.38794445]
[1735607706509,0.054251,92324.0,92323.0,0.38794445]
[1735607706710,0.415051,92324.0,92323.0,0.38794445]
[1735607707514,0.415051,92324.0,92311.0,1.554819]
[1735607707515,0.054253,92322.0,92311.0,1.554819]
[1735607707714,0.3608,92324.0,92320.0,0.054254]
[1735607708018,0.3608,92324.0,92311.0,1.5]
[1735607708308,0.054252,92323.0,92314.0,0.054257]
[1735607708509,0.3608,92324.0,92311.0,1.50064]
[1735607708715,0.3608,92324.0,92322.0,0.054252]
[1735607709009,0.3618,92324.0,92322.0,0.054252]
[1735607709212,0.3628,92324.0,92322.0,0.054252]
[1735607709514,0.002,92324.0,92322.0,0.054252]
[1735607710815,0.001,92324.0,92322.0,0.055252]
[1735607711110,0.001,92324.0,92323.0,0.0623]
[1735607711313,0.42602665,92333.0,92323.0,0.0623]
[1735607711511,0.001,92324.0,92323.0,0.0623]
[1735607711702,0.001,92324.0,92323.0,1.5623]
[1735607711903,0.42602665,92333.0,92323.0,1.5623]
[1735607712212,0.78464543,92333.0,92323.0,1.5623]
[1735607712412,0.054258,92313.0,92301.0,0.061]
[1735607712603,0.3608,92306.0,92301.0,0.061]
[1735607712803,0.3608,92306.0,92304.0,1.5]
[1735607714512,0.3608,92306.0,92304.0,1.501]
[1735607714735,0.3608,92306.0,92283.0,0.054275]
[1735607714736,0.3608,92305.0,92283.0,0.054275]
[1735607714918,0.3608,92305.0,92276.0,0.3608]
[1735607714919,0.3608,92296.0,92284.0,0.054274]
[1735607715103,0.05427,92293.0,92284.0,0.054274]
[1735607715303,0.3608,92296.0,92290.0,0.054271]
[1735607715705,0.415068,92296.0,92282.0,0.054276]
[1735607715905,0.415068,92296.0,92285.0,0.3608]
[1735607716105,0.415068,92296.0,92281.0,1.5]
[1735607716106,0.3608,92296.0,92281.0,1.5]
[1735607716406,0.001,92293.0,92286.0,0.054273]
[1735607717314,0.001,92293.0,92283.0,0.0698]
[1735607717617,0.001,92293.0,92286.0,0.005]
[1735607717909,0.3608,92296.0,92289.0,0.054272]
[1735607718110,0.3618,92296.0,92289.0,0.054272]
[1735607718305,0.416068,92296.0,92289.0,0.054272]
[1735607718501,0.415068,92296.0,92289.0,0.054272]
[1735607718707,0.001,92293.0,92289.0,0.054272]
[1735607719414,0.415068,92296.0,92289.0,0.054272]
[1735607719619,0.054271,92292.0,92289.0,0.003]
[1735607720008,0.054271,92291.0,92289.0,0.003]
[1735607720318,0.054271,92291.0,92289.0,0.004]
[1735607721715,0.054269,92295.0,92292.0,0.05427]
[1735607721916,0.054269,92295.0,92293.0,0.0649]
[1735607725614,0.054269,92295.0,92293.0,0.0659]
[1735607728316,0.054269,92295.0,92293.0,0.0649]
[1735607729113,0.054269,92295.0,92294.0,5.824e-05]
[1735607729914,0.3608,92296.0,92294.0,5.824e-05]
[1735607730110,0.01110464,92300.0,92294.0,0.06085824]
[1735607730313,0.3608,92305.0,92294.0,5.824e-05]
[1735607730821,0.054266,92300.0,92294.0,5.824e-05]
[1735607731214,0.054266,92300.0,92294.0,0.00105824]
[1735607731620,0.001,92295.0,92294.0,0.00105824]
[1735607731824,0.3618,92295.0,92294.0,0.00105824]
[1735607732325,0.3608,92295.0,92294.0,0.00205824]
[1735607732824,0.3608,92295.0,92294.0,0.00105824]
[1735607733027,0.3608,92295.0,92294.0,0.00205824]
[1735607733417,0.3608,92295.0,92294.0,0.00105824]
[1735607733922,0.054268,92296.0,92294.0,0.00105824]
[1735607735026,0.054268,92296.0,92294.0,5.824e-05]
[1735607735713,0.054268,92296.0,92294.0,0.00205824]
[1735607737021,0.3608,92295.0,92294.0,0.00105824]
[1735607738727,0.3608,92295.0,92294.0,5.824e-05]
[1735607739424,0.3618,92295.0,92294.0,5.824e-05]
[1735607739823,0.3608,92295.0,92294.0,0.00205824]
[1735607740123,0.054264,92304.0,92294.0,0.00205824]
[1735607740630,0.054265,92302.0,92294.0,0.00205824]
[1735607740824,0.054265,92302.0,92295.0,1.5]
[1735607741125,0.054265,92302.0,92294.0,0.00205824]
[1735607741521,0.054265,92302.0,92294.0,5.824e-05]
[1735607741720,0.054265,92302.0,92294.0,0.00205824]
[1735607741920,0.054265,92301.0,92294.0,0.00305824]
[1735607742122,0.3716049,92305.0,92294.0,0.00305824]
[1735607742323,0.054267,92298.0,92294.0,0.00205824]
[1735607742926,0.054267,92298.0,92295.0,0.25842208]
[1735607744019,0.054267,92298.0,92294.0,0.26048032]
[1735607744522,0.054267,92298.0,92294.0,0.25948032]
[1735607745323,0.054267,92298.0,92294.0,0.00105824]
[1735607745926,0.054267,92298.0,92294.0,0.06275824]
[1735607746321,0.3716049,92305.0,92294.0,0.06275824]
[1735607746523,0.054268,92296.0,92294.0,0.00105824]
[1735607746716,0.3608,92295.0,92294.0,0.00105824]
[1735607748122,0.3608,92295.0,92294.0,5.824e-05]
[1735607748322,0.3608,92295.0,92294.0,0.00105824]
[1735607748718,0.3608,92295.0,92294.0,5.824e-05]
[1735607748931,0.3628,92295.0,92294.0,5.824e-05]
[1735607751035,0.3638,92295.0,92294.0,5.824e-05]
[1735607751335,0.3628,92295.0,92294.0,5.824e-05]
[1735607751535,0.3638,92295.0,92294.0,5.824e-05]
[1735607752626,0.37484286,92295.0,92294.0,1.50005824]
[1735607753432,0.37484286,92295.0,92294.0,5.824e-05]
[1735607753732,0.37384286,92295.0,92294.0,5.824e-05]
[1735607753930,0.37484286,92295.0,92294.0,5.824e-05]
[1735607754333,0.19316909,92295.0,92294.0,5.824e-05]
[1735607755030,0.19116909,92295.0,92294.0,5.824e-05]
[1735607755229,0.19016909,92295.0,92294.0,5.824e-05]
[1735607755435,0.19116909,92295.0,92294.0,5.824e-05]
[1735607756325,0.19316909,92295.0,92294.0,5.824e-05]
[1735607757327,0.19216909,92295.0,92294.0,5.824e-05]
[1735607757534,0.19316909,92295.0,92294.0,5.824e-05]
[1735607758125,0.19216909,92295.0,92294.0,5.824e-05]
[1735607758434,0.19316909,92295.0,92294.0,5.824e-05]
[1735607760539,0.01404286,92295.0,92294.0,5.824e-05]
[1735607761338,0.01204286,92295.0,92294.0,5.824e-05]
[1735607761542,0.01404286,92295.0,92294.0,5.824e-05]
[1735607761841,0.01504286,92295.0,92294.0,5.824e-05]
[1735607762245,0.17672516,92295.0,92294.0,5.824e-05]
[1735607762629,0.17372516,92295.0,92294.0,0.00105824]